{"text_format":"3","workbook":"xlsx","n_sheets":2,"sheets":["Sheet1","Sheet2"],"not_rendered":{"defined_names":2},"read":"whole","date_system":"1900"}

{"sheet":"Sheet1","index":0,"n_rows":50,"n_cols":18,"rows_kept":50,"merged":[[0,0,0,17],[1,0,1,17],[2,0,3,0],[2,1,3,1],[2,2,3,2],[2,3,3,3],[2,4,3,4],[2,5,3,5],[2,6,2,10],[2,11,3,11],[2,12,3,12],[2,13,3,13],[2,14,3,14],[2,15,3,15],[2,16,3,16],[2,17,3,17],[5,17,9,17],[10,17,17,17],[18,17,25,17],[26,17,33,17],[34,17,41,17],[42,17,44,17],[45,17,46,17]]}
["附件1"]
["2023年隆回县公开招聘中小学（职业中专）教师计划与岗位要求一览表"]
["序号","招聘类别","招聘学校","招聘岗位","招聘计划","岗位代码","岗位要求",{"$nulls":4},"笔试内容","面试方式","笔试与面试占综合成绩比例","报名及考试咨询","招聘对象","定向区域","其他要求"]
[{"$nulls":6},"学历","专业","教师资格证","年龄","普通话"]
[1,"职业中专类","隆回县职业中专","财务会计与审计",1,"Z101","普通高校本科及以上学历和相应学位","财务会计与审计、财务会计教育、审计学、财务管理、会计学、会计硕士、审计硕士","高中或中职相应学科教师资格证及以上","30周岁以下","二级乙等及以上","相关专业知识","上微型课","笔试60%\n面试40%","刘  斌\n15273928197","限应届（含2021届、2022届择业期内尚未落实工作单位）普通高校毕业生",null,"暂未取得相关证书的应届普通高校毕业生，自签订合同起两年之内必须取得相应层次和本次所报考专业的教师资格证和普通话等级证书，否则取消聘用资格"]
[2,"高中类","隆回一中","高中语文",1,"A101","普通高校本科及以上学历和相应学位","中国语言文学类","高中相应学科教师资格证及以上","30周岁以下","二级甲等及以上","相关专业知识","上微型课","笔试60%\n面试40%","阳春晖\n18173906887","限应届（含2021届、2022届择业期内尚未落实工作单位）普通高校毕业生",null,"暂未取得相关证书的2023年应届普通高校毕业生，必须在2023年7月31日前取得岗位所要求的学历学位证书和教师资格证，否则取消聘用资格"]
[3,"高中类","隆回一中","高中数学",1,"A102","普通高校本科及以上学历和相应学位","数学与统计类","高中相应学科教师资格证及以上","30周岁以下","二级乙等及以上","相关专业知识","上微型课","笔试60%\n面试40%","阳春晖\n18173906887","限应届（含2021届、2022届择业期内尚未落实工作单位）普通高校毕业生"]
[4,"高中类","隆回一中","高中物理",3,"A103","普通高校本科及以上学历和相应学位","物理学类、力学类、能源动力类、动力工程及工程热物理类","高中相应学科教师资格证及以上","30周岁以下","二级乙等及以上","相关专业知识","上微型课","笔试60%\n面试40%","阳春晖\n18173906887","限应届（含2021届、2022届择业期内尚未落实工作单位）普通高校毕业生"]
[5,"高中类","隆回二中","高中语文",2,"A201","普通高校本科及以上学历和相应学位","中国语言文学类","高中相应学科教师资格证及以上","30周岁以下","二级甲等及以上","相关专业知识","上微型课","笔试60%\n面试40%","刘述雄\n18163836019","限应届（含2021届、2022届择业期内尚未落实工作单位）普通高校毕业生"]
[6,"高中类","隆回二中","高中英语",1,"A202","普通高校本科及以上学历和相应学位","外国语言文学类","高中相应学科教师资格证及以上","30周岁以下","二级乙等及以上","相关专业知识","上微型课","笔试60%\n面试40%","刘述雄\n18163836019","限应届（含2021届、2022届择业期内尚未落实工作单位）普通高校毕业生"]
[7,"高中类","隆回二中","高中生物",1,"A203","普通高校本科及以上学历和相应学位","生物学类、生物科学类","高中相应学科教师资格证及以上","30周岁以下","二级乙等及以上","相关专业知识","上微型课","笔试60%\n面试40%","刘述雄\n18163836019","限应届（含2021届、2022届择业期内尚未落实工作单位）普通高校毕业生",null,"暂未取得相关证书的2023年应届普通高校毕业生，必须在2023年7月31日前取得岗位所要求的学历学位证书和教师资格证，否则取消聘用资格"]
[8,"高中类","隆回二中","高中政治",1,"A204","普通高校本科及以上学历和相应学位","政治学类","高中相应学科教师资格证及以上","30周岁以下","二级乙等及以上","相关专业知识","上微型课","笔试60%\n面试40%","刘述雄\n18163836019","限应届（含2021届、2022届择业期内尚未落实工作单位）普通高校毕业生"]
[9,"高中类","隆回二中","高中数学",1,"A205","普通高校本科及以上学历和相应学位","数学与统计类","高中相应学科教师资格证及以上","30周岁以下","二级乙等及以上","相关专业知识","上微型课","笔试60%\n面试40%","刘述雄\n18163836019","限应届（含2021届、2022届择业期内尚未落实工作单位）普通高校毕业生"]
[10,"高中类","隆回二中","高中物理",2,"A206","普通高校本科及以上学历和相应学位","物理学类、力学类、能源动力类、动力工程及工程热物理类","高中相应学科教师资格证及以上","30周岁以下","二级乙等及以上","相关专业知识","上微型课","笔试60%\n面试40%","刘述雄\n18163836019","限应届（含2021届、2022届择业期内尚未落实工作单位）普通高校毕业生"]
[11,"高中类","隆回九中","高中语文",1,"A301","普通高校本科及以上学历和相应学位","中国语言文学类","高中相应学科教师资格证及以上","30周岁以下","二级甲等及以上","相关专业知识","上微型课","笔试60%\n面试40%","尹伟民\n13789193028","限应届（含2021届、2022届择业期内尚未落实工作单位）普通高校毕业生"]
[12,"高中类","隆回九中","高中物理",2,"A302","普通高校本科及以上学历和相应学位","物理学类、力学类、能源动力类、动力工程及工程热物理类","高中相应学科教师资格证及以上","30周岁以下","二级乙等及以上","相关专业知识","上微型课","笔试60%\n面试40%","尹伟民\n13789193028","限应届（含2021届、2022届择业期内尚未落实工作单位）普通高校毕业生"]
[13,"高中类","隆回六中","高中语文",2,"A401","普通高校本科及以上学历和相应学位","中国语言文学类","高中相应学科教师资格证及以上","35周岁以下","二级甲等及以上","相关专业知识","上微型课","笔试60%\n面试40%","陈今凯\n13973913907"]
[14,"高中类","隆回六中","高中数学",4,"A402","普通高校本科及以上学历和相应学位","数学与统计类","高中相应学科教师资格证及以上","35周岁以下","二级乙等及以上","相关专业知识","上微型课","笔试60%\n面试40%","陈今凯\n13973913907"]
[15,"高中类","隆回六中","高中英语",2,"A403","普通高校本科及以上学历和相应学位","外国语言文学类","高中相应学科教师资格证及以上","35周岁以下","二级乙等及以上","相关专业知识","上微型课","笔试60%\n面试40%","陈今凯\n13973913907",null,null,"暂未取得相关证书的2023年应届普通高校毕业生，必须在2023年7月31日前取得岗位所要求的学历学位证书和教师资格证，否则取消聘用资格"]
[16,"高中类","隆回六中","高中物理",3,"A404","普通高校本科及以上学历和相应学位","物理学类、力学类、能源动力类、动力工程及工程热物理类","高中相应学科教师资格证及以上","35周岁以下","二级乙等及以上","相关专业知识","上微型课","笔试60%\n面试40%","陈今凯\n13973913907"]
[17,"高中类","隆回六中","高中生物",2,"A405","普通高校本科及以上学历和相应学位","生物学类、生物科学类","高中相应学科教师资格证及以上","35周岁以下","二级乙等及以上","相关专业知识","上微型课","笔试60%\n面试40%","陈今凯\n13973913907"]
[18,"高中类","隆回六中","高中地理",3,"A406","普通高校本科及以上学历和相应学位","地理学类、地理科学类","高中相应学科教师资格证及以上","35周岁以下","二级乙等及以上","相关专业知识","上微型课","笔试60%\n面试40%","陈今凯\n13973913907"]
[19,"高中类","隆回六中","高中政治",2,"A407","普通高校本科及以上学历和相应学位","政治学类","高中相应学科教师资格证及以上","35周岁以下","二级乙等及以上","相关专业知识","上微型课","笔试60%\n面试40%","陈今凯\n13973913907"]
[20,"高中类","隆回六中","高中历史",1,"A408","普通高校本科及以上学历和相应学位","历史学类","高中相应学科教师资格证及以上","35周岁以下","二级乙等及以上","相关专业知识","上微型课","笔试60%\n面试40%","陈今凯\n13973913907"]
[21,"高中类","隆回六中","高中音乐",1,"A409","普通高校本科及以上学历和相应学位","艺术类","高中相应学科教师资格证及以上","35周岁以下","二级乙等及以上","相关专业知识","上微型课+技能测试","笔试60%\n面试40%","陈今凯\n13973913907"]
[22,"初中类",null,"初中语文",10,"B101","普通高校本科及以上学历和相应学位","不限","初中相应学科教师资格证及以上","30周岁以下","二级甲等及以上","相关专业知识","上微型课","笔试60%\n面试40%","隆回县教育局\n0739-8240050"]
[23,"初中类",null,"初中数学",10,"B102","普通高校本科及以上学历和相应学位","不限","初中相应学科教师资格证及以上","30周岁以下","二级乙等及以上","相关专业知识","上微型课","笔试60%\n面试40%","隆回县教育局\n0739-8240050",null,null,"暂未取得相关证书的2023年应届普通高校毕业生，必须在2023年7月31日前取得岗位所要求的学历学位证书和教师资格证，否则取消聘用资格"]
[24,"初中类",null,"初中英语",6,"B103","普通高校本科及以上学历和相应学位","不限","初中相应学科教师资格证及以上","30周岁以下","二级乙等及以上","相关专业知识","上微型课","笔试60%\n面试40%","隆回县教育局\n0739-8240050","限应届（含2021届、2022届择业期内尚未落实工作单位）普通高校毕业生"]
[25,"初中类",null,"初中物理",10,"B104","普通高校本科及以上学历和相应学位","不限","初中相应学科教师资格证及以上","30周岁以下","二级乙等及以上","相关专业知识","上微型课","笔试60%\n面试40%","隆回县教育局\n0739-8240050"]
[26,"初中类",null,"初中化学",7,"B105","普通高校本科及以上学历和相应学位","不限","初中相应学科教师资格证及以上","30周岁以下","二级乙等及以上","相关专业知识","上微型课","笔试60%\n面试40%","隆回县教育局\n0739-8240050"]
[27,"初中类",null,"初中生物",4,"B106","普通高校本科及以上学历和相应学位","不限","初中相应学科教师资格证及以上","30周岁以下","二级乙等及以上","相关专业知识","上微型课","笔试60%\n面试40%","隆回县教育局\n0739-8240050"]
[28,"初中类",null,"初中地理",4,"B107","普通高校本科及以上学历和相应学位","不限","初中相应学科教师资格证及以上","30周岁以下","二级乙等及以上","相关专业知识","上微型课","笔试60%\n面试40%","隆回县教育局\n0739-8240050"]
[29,"初中类",null,"初中道德与法治",6,"B108","普通高校本科及以上学历和相应学位","不限","初中相应学科教师资格证及以上","30周岁以下","二级乙等及以上","相关专业知识","上微型课","笔试60%\n面试40%","隆回县教育局\n0739-8240050","限应届（含2021届、2022届择业期内尚未落实工作单位）普通高校毕业生"]
[30,"初中类",null,"初中音乐",4,"B109","普通高校本科及以上学历和相应学位","艺术类（限音乐专业方向）","初中相应学科教师资格证及以上","30周岁以下","二级乙等及以上","相关专业知识","上微型课+技能测试","笔试60%\n面试40%","隆回县教育局\n0739-8240050","限应届（含2021届、2022届择业期内尚未落实工作单位）普通高校毕业生"]
[31,"初中类",null,"初中体育",5,"B110","普通高校本科及以上学历和相应学位","体育学类","初中相应学科教师资格证及以上","30周岁以下","二级乙等及以上","相关专业知识","上微型课+技能测试","笔试60%\n面试40%","隆回县教育局\n0739-8240050","限应届（含2021届、2022届择业期内尚未落实工作单位）普通高校毕业生",null,"暂未取得相关证书的2023年应届普通高校毕业生，必须在2023年7月31日前取得岗位所要求的学历学位证书和教师资格证，否则取消聘用资格"]
[32,"初中类",null,"初中美术",4,"B111","普通高校本科及以上学历和相应学位","艺术类（限美术专业方向）","初中相应学科教师资格证及以上","30周岁以下","二级乙等及以上","相关专业知识","上微型课+技能测试","笔试60%\n面试40%","隆回县教育局\n0739-8240050","限应届（含2021届、2022届择业期内尚未落实工作单位）普通高校毕业生"]
[33,"初中类",null,"初中心理健康",5,"B112","普通高校本科及以上学历和相应学位","不限","初中相应学科教师资格证及以上","30周岁以下","二级乙等及以上","相关专业知识","上微型课","笔试60%\n面试40%","隆回县教育局\n0739-8240050"]
[34,"小学一类",null,"小学语文",7,"C101","大专及以上学历","不限","小学相应学科教师资格证及以上","30周岁以下","二级甲等及以上","相关专业知识","上微型课","笔试60%\n面试40%","隆回县教育局\n0739-8240050"]
[35,"小学一类",null,"小学数学",6,"C102","大专及以上学历","不限","小学相应学科教师资格证及以上","30周岁以下","二级乙等及以上","相关专业知识","上微型课","笔试60%\n面试40%","隆回县教育局\n0739-8240050"]
[36,"小学一类",null,"小学英语",6,"C103","大专及以上学历","不限","小学相应学科教师资格证及以上","30周岁以下","二级乙等及以上","相关专业知识","上微型课","笔试60%\n面试40%","隆回县教育局\n0739-8240050"]
[37,"小学一类",null,"小学音乐",4,"C104","大专及以上学历","艺术类、音乐教育（限音乐专业方向）","小学相应学科教师资格证及以上","30周岁以下","二级乙等及以上","相关专业知识","上微型课+技能测试","笔试60%\n面试40%","隆回县教育局\n0739-8240050"]
[38,"小学一类",null,"小学体育",4,"C105","大专及以上学历","体育学类、体育教育","小学相应学科教师资格证及以上","30周岁以下","二级乙等及以上","相关专业知识","上微型课+技能测试","笔试60%\n面试40%","隆回县教育局\n0739-8240050"]
[39,"小学一类",null,"小学美术",3,"C106","大专及以上学历","艺术类、美术教育（限美术专业方向）","小学相应学科教师资格证及以上","30周岁以下","二级乙等及以上","相关专业知识","上微型课+技能测试","笔试60%\n面试40%","隆回县教育局\n0739-8240050",null,null,"暂未取得相关证书的应届普通高校毕业生，必须在2023年7月31日前取得岗位所要求的学历学位证书和教师资格证，否则取消聘用资格"]
[40,"小学一类",null,"小学道德与法治",4,"C107","大专及以上学历","不限","小学教师资格证及以上","30周岁以下","二级乙等及以上","相关专业知识","上微型课","笔试60%\n面试40%","隆回县教育局\n0739-8240050"]
[41,"小学一类",null,"小学心理健康",4,"C108","大专及以上学历","不限","小学教师资格证及以上","30周岁以下","二级乙等及以上","相关专业知识","上微型课","笔试60%\n面试40%","隆回县教育局\n0739-8240050"]
[42,"小学二类",null,"小学语文",6,"D101","大专及以上学历","不限","小学教师资格证及以上","30周岁以下","二级甲等及以上","相关专业知识","上微型课","笔试60%\n面试40%","隆回县教育局\n0739-8240050","限应届（含2021届、2022届择业期内尚未落实工作单位）普通高校毕业生","麻塘山乡（烟竹坪小学1）、虎形山瑶族乡（白水洞小学1）、小沙江镇(旺溪小学1）、罗洪镇（采莲小学1）、鸭田镇（石鼓小学1）、大水田乡（和平小学1）","1.限本县户籍\n2.暂未取得相关证书的2023年应届普通高校毕业生，必须在2023年7月31日前取得岗位所要求的学历学位证书和教师资格证，否则取消聘用资格"]
[43,"小学二类",null,"小学数学",6,"D102","大专及以上学历","不限","小学教师资格证及以上","30周岁以下","二级乙等及以上","相关专业知识","上微型课","笔试60%\n面试40%","隆回县教育局\n0739-8240050","限应届（含2021届、2022届择业期内尚未落实工作单位）普通高校毕业生","麻塘山乡（油溪坪小学1）、虎形山瑶族乡（草原小学1）、小沙江镇（光化小学1、江边小学1）、鸭田镇（石鼓小学1）、大水田乡（白马山小学1）"]
[44,"小学二类",null,"小学英语",3,"D103","大专及以上学历","不限","小学相应学科教师资格证及以上","30周岁以下","二级乙等及以上","相关专业知识","上微型课","笔试60%\n面试40%","隆回县教育局\n0739-8240050","限应届（含2021届、2022届择业期内尚未落实工作单位）普通高校毕业生","麻塘山乡（青山九年义务制学校1）、罗洪镇（巴油小学1）、鸭田镇（石鼓小学1）","1.限本县户籍\n2.暂未取得相关证书的2023年应届普通高校毕业生，必须在2023年7月31日前取得岗位所要求的学历学位证书和教师资格证，否则取消聘用资格"]
[45,"小学三类",null,"小学语文",1,"E101","大专及以上学历","不限","小学教师资格证及以上","30周岁以下","二级甲等及以上","相关专业知识","上微型课","笔试60%\n面试40%","隆回县教育局\n0739-8240050","限应届（含2021届、2022届择业期内尚未落实工作单位）普通高校毕业生","山界回族乡落马小学","1.限本县户籍的回族考生。\n2.暂未取得相关证书的2023年应届普通高校毕业生，必须在2023年7月31日前取得岗位所要求的学历学位证书和教师资格证，否则取消聘用资格"]
[46,"小学三类",null,"小学语文",1,"E102","大专及以上学历","不限","小学教师资格证及以上","30周岁以下","二级甲等及以上","相关专业知识","上微型课","笔试60%\n面试40%","隆回县教育局\n0739-8240050","限应届（含2021届、2022届择业期内尚未落实工作单位）普通高校毕业生","虎形山瑶族乡九年义务制学校","1.限本县户籍的瑶族考生。\n2.暂未取得相关证书的2023年应届普通高校毕业生，必须在2023年7月31日前取得岗位所要求的学历学位证书和教师资格证，否则取消聘用资格"]

{"sheet":"Sheet2","index":1,"n_rows":48,"n_cols":4,"rows_kept":48,"merged":[[0,0,1,0],[0,1,1,1],[0,2,1,2]]}
["招聘岗位","招聘计划","岗位代码"]
[]
["财务会计与审计","-","Z101",{"$f":"A3&B3&C3","v":"财务会计与审计-Z101"}]
["高中语文","-","A101",{"$f":"A4&B4&C4","v":"高中语文-A101"}]
["高中数学","-","A102","高中数学-A102"]
["高中物理","-","A103","高中物理-A103"]
["高中语文","-","A201","高中语文-A201"]
["高中英语","-","A202","高中英语-A202"]
["高中生物","-","A203","高中生物-A203"]
["高中政治","-","A204","高中政治-A204"]
["高中数学","-","A205","高中数学-A205"]
["高中物理","-","A206","高中物理-A206"]
["高中语文","-","A301","高中语文-A301"]
["高中物理","-","A302","高中物理-A302"]
["高中语文","-","A401","高中语文-A401"]
["高中数学","-","A402","高中数学-A402"]
["高中英语","-","A403","高中英语-A403"]
["高中物理","-","A404","高中物理-A404"]
["高中生物","-","A405","高中生物-A405"]
["高中地理","-","A406","高中地理-A406"]
["高中政治","-","A407","高中政治-A407"]
["高中历史","-","A408","高中历史-A408"]
["高中音乐","-","A409","高中音乐-A409"]
["初中语文","-","B101","初中语文-B101"]
["初中数学","-","B102","初中数学-B102"]
["初中英语","-","B103","初中英语-B103"]
["初中物理","-","B104","初中物理-B104"]
["初中化学","-","B105","初中化学-B105"]
["初中生物","-","B106","初中生物-B106"]
["初中地理","-","B107","初中地理-B107"]
["初中道德与法治","-","B108","初中道德与法治-B108"]
["初中音乐","-","B109","初中音乐-B109"]
["初中体育","-","B110","初中体育-B110"]
["初中美术","-","B111","初中美术-B111"]
["初中心理健康","-","B112","初中心理健康-B112"]
["小学语文","-","C101","小学语文-C101"]
["小学数学","-","C102","小学数学-C102"]
["小学英语","-","C103","小学英语-C103"]
["小学音乐","-","C104","小学音乐-C104"]
["小学体育","-","C105","小学体育-C105"]
["小学美术","-","C106","小学美术-C106"]
["小学道德与法治","-","C107","小学道德与法治-C107"]
["小学心理健康","-","C108","小学心理健康-C108"]
["小学语文","-","D101","小学语文-D101"]
["小学数学","-","D102","小学数学-D102"]
["小学英语","-","D103","小学英语-D103"]
["小学语文","-","E101","小学语文-E101"]
["小学语文","-","E102","小学语文-E102"]